bitfinex-derivatives/quotes_SOLF0:USTF0_20241021
["timestamp","ask_amount","ask_price","bid_price","bid_amount"]
[1729478391345,4.44,169.22,169.14,1.47923641]
[1729478391542,4.44,169.22,169.13,2.5891]
[1729478391543,2.9564,169.17,169.13,2.5891]
[1729478391847,4.44,169.22,169.14,1.47933341]
[1729478392057,4.44,169.22,169.13,2.5891]
[1729478393054,4.44,169.22,169.14,1.47934411]
[1729478393345,4.44,169.22,169.13,2.5891]
[1729478393543,2.9565,169.16,169.14,1.47934411]
[1729478393841,2.9565,169.16,169.13,2.5891]
[1729478394146,2.957,169.13,169.11,3.00610275]
[1729478394351,2.957,169.13,169.12,1.47946346]
[1729478394644,2.957,169.13,169.12,4.50919248]
[1729478395050,2.957,169.13,169.12,3.02970791]
[1729478395242,17.75,169.25,169.1,4.44]
[1729478395447,17.75,169.23,169.11,1.47947602]
[1729478395648,17.75,169.23,169.12,1.47947602]
[1729478395949,17.75,169.23,169.11,4.24937988]
[1729478395950,2.9564,169.17,169.13,1.47947602]
[1729478396148,4.44,169.19,169.14,1.47932456]
[1729478396350,4.44,169.19,169.11,2.6912]
[1729478396648,4.44,169.19,169.12,1.47934645]
[1729478396649,2.9567,169.15,169.12,1.47934645]
[1729478396845,2.9567,169.15,169.13,1.47934645]
[1729478397046,2.9567,169.15,169.11,2.6912]
[1729478397249,2.9564,169.17,169.12,1.47940793]
[1729478397447,2.9564,169.17,169.13,1.47940793]
[1729478397646,2.9564,169.17,169.14,1.47940793]
[1729478397844,2.9564,169.17,169.12,2.957]
[1729478398045,2.9564,169.17,169.13,1.47932329]
[1729478398249,2.9564,169.17,169.12,5.85950304]
[1729478398450,2.9564,169.17,169.14,1.47932889]
[1729478398646,4.44,169.19,169.12,2.90250304]
[1729478398846,2.9566,169.16,169.13,1.47933049]
[1729478399045,2.9566,169.16,169.14,2.96847574]
[1729478399252,2.9566,169.16,169.11,2.6912]
[1729478399553,2.9566,169.16,169.12,1.47940691]
[1729478399748,2.9566,169.16,169.13,1.47940691]
[1729478399946,2.9566,169.16,169.11,5.6485]
[1729478400253,2.9566,169.16,169.12,1.47939771]
[1729478400452,2.9566,169.16,169.13,1.47939771]
[1729478400649,2.9566,169.16,169.11,8.58798326]
[1729478400854,2.9566,169.16,169.12,1.47943363]
[1729478401052,2.9566,169.16,169.11,8.58798326]
[1729478401554,2.9566,169.16,169.12,1.47943363]
[1729478401757,2.9566,169.16,169.13,1.47943363]
[1729478402054,2.9566,169.16,169.11,8.58798326]
[1729478402254,2.9568,169.15,169.12,1.47942687]
[1729478402451,2.9568,169.15,169.11,5.63068326]
[1729478402452,2.9568,169.15,169.13,1.47942687]
[1729478402758,2.9568,169.15,169.11,5.63068326]
[1729478403051,2.9562,169.18,169.13,2.957]
[1729478403251,2.9562,169.18,169.11,5.63068326]
[1729478403457,2.9562,169.18,169.12,1.47939719]
[1729478403651,2.9562,169.18,169.13,1.47939719]
[1729478403849,4.44,169.19,169.11,5.63068326]
[1729478403850,2.9565,169.16,169.11,5.63068326]
[1729478404050,2.9565,169.16,169.12,1.47938647]
[1729478404258,2.9565,169.16,169.13,1.47938647]
[1729478404555,2.9568,169.15,169.11,5.63068326]
[1729478404749,2.9568,169.15,169.12,1.47941202]
[1729478404949,2.9568,169.15,169.13,1.47941202]
[1729478405257,4.44,169.19,169.11,8.58798326]
[1729478405258,2.9565,169.16,169.11,8.58798326]
[1729478405552,2.9565,169.16,169.12,1.47940742]
[1729478405757,2.9565,169.16,169.13,1.47940742]
[1729478406055,2.9565,169.16,169.11,8.58798326]
[1729478406256,2.9565,169.16,169.12,1.47941392]
[1729478406456,2.9565,169.16,169.13,1.47941392]
[1729478406750,2.9565,169.16,169.11,8.58798326]
[1729478406956,2.9565,169.16,169.12,1.47947412]
[1729478407160,2.9565,169.16,169.13,1.47947412]
[1729478407454,2.9565,169.16,169.11,8.58798326]
[1729478407755,2.9565,169.16,169.12,1.47944664]
[1729478407954,2.9568,169.14,169.13,1.47944664]
[1729478408151,2.9568,169.14,169.11,2.93948326]
[1729478408349,2.9568,169.14,169.08,2.9577]
[1729478408660,2.9568,169.14,169.1,2.9575]
[1729478408957,2.9568,169.14,169.07,4.44]
[1729478408958,4.44,169.18,169.11,1.4794871]
[1729478409157,4.44,169.19,169.12,1.4794871]
[1729478409360,4.44,169.19,169.13,1.4794871]
[1729478409659,4.44,169.19,169.12,2.90001792]
[1729478409851,4.44,169.19,169.13,1.47940778]
[1729478410052,4.44,169.19,169.14,2.98492102]
[1729478410261,4.44,169.19,169.11,2.9573]
[1729478410557,4.44,169.19,169.12,1.47940778]
[1729478410762,4.44,169.19,169.13,1.47940778]
[1729478411057,2.9565,169.16,169.11,5.88690088]
[1729478411356,2.9565,169.16,169.12,1.47942812]
[1729478411557,2.9565,169.16,169.13,1.47942812]
[1729478411747,2.9565,169.16,169.11,5.88690088]
[1729478411946,2.9565,169.16,169.12,1.47942048]
[1729478412150,2.9565,169.16,169.13,1.47942048]
[1729478412354,2.9565,169.16,169.11,5.88690088]
[1729478412558,2.9565,169.16,169.12,1.47940617]
[1729478412855,2.9565,169.16,169.13,1.47940617]
[1729478413456,4.44,169.19,169.11,2.92960088]
[1729478413457,22.19,169.19,169.11,2.92960088]
[1729478413853,22.19,169.19,169.07,4.44]
[1729478414058,2.9571,169.13,169.07,4.44]
[1729478414351,22.19,169.19,169.04,2.5301]
[1729478414352,4.44,169.15,169.04,2.5301]
[1729478414552,4.44,169.15,169.05,4.44]
[1729478414755,4.44,169.15,169.05,2.9582]
[1729478414950,4.44,169.15,169.04,2.5301]
[1729478415553,22.19,169.15,169.04,5.4887]
[1729478415751,22.19,169.15,169.04,2.5301]
[1729478415945,2.9573,169.12,169.02,2.96089261]
[1729478416151,4.44,169.11,169.01,4.44]
[1729478416653,4.44,169.11,169.01,7.4148552]
[1729478417051,4.44,169.11,169.01,2.9748552]
[1729478417246,2.9584,169.06,168.98,4.44]
[1729478417449,4.44,169.11,168.98,4.44]
[1729478417756,2.9585,169.05,168.99,2.9594]
[1729478418157,4.44,169.07,168.98,4.44]
[1729478418358,2.9589,169.03,168.98,4.44]
[1729478419856,4.44,169.07,168.98,4.44]
[1729478420058,2.9585,169.05,168.98,4.44]
[1729478420857,2.9585,169.05,168.99,2.9594]
[1729478424660,2.9585,169.05,169.0,1.48017854]
[1729478424857,2.9585,169.05,169.01,2.96804018]
[1729478425161,2.9585,169.05,168.99,2.9594]
[1729478425359,2.9585,169.05,169.0,1.48017936]
[1729478425663,2.9585,169.05,168.99,2.9594]
[1729478425862,2.9586,169.04,169.0,1.48017717]
[1729478426065,2.9586,169.04,169.01,2.95383125]
[1729478426260,2.9586,169.04,168.99,2.9594]
[1729478426462,2.9586,169.04,169.0,1.4801766]
[1729478426764,2.9586,169.04,169.01,3.000896]
[1729478427059,2.9587,169.04,168.98,2.9595]
[1729478427261,2.9587,169.04,168.99,1.48017671]
[1729478427463,2.9587,169.04,169.0,1.48017671]
[1729478427664,2.9587,169.04,169.01,2.94199106]
[1729478427857,2.9587,169.04,168.97,4.44]
[1729478428362,2.9587,169.04,168.99,2.9594]
[1729478429160,63.9,169.16,168.97,4.44]
[1729478429362,4.44,169.15,168.98,2.96007877]
[1729478429560,2.9577,169.09,169.04,2.9585]
[1729478429771,4.44,169.11,169.04,2.90960275]
[1729478429958,63.9,169.16,169.0,2.5739]
[1729478429959,4.44,169.1,169.0,2.5739]
[1729478430153,2.9584,169.06,169.01,1.48001785]
[1729478430358,4.44,169.08,169.02,2.9181874]
[1729478430554,4.44,169.08,169.0,5.533]
[1729478430762,4.44,169.08,169.01,1.47998695]
[1729478430966,2.9584,169.06,169.0,5.533]
[1729478431162,2.9584,169.06,169.01,1.48003937]
[1729478431355,2.9584,169.06,169.0,5.533]
[1729478431559,2.9582,169.06,169.01,2.8864599]
[1729478432062,4.44,169.08,169.0,2.5739]
[1729478433066,4.44,169.08,169.01,2.95158359]
[1729478434066,2.9585,169.05,169.0,2.5739]
[1729478434470,2.9585,169.05,169.0,5.5331]
[1729478434668,2.9584,169.06,169.0,5.5331]
[1729478434866,4.44,169.08,168.98,7.3996]
[1729478435072,4.44,169.08,168.99,1.48018446]
[1729478435271,4.44,169.08,168.98,7.3996]
[1729478435464,17.75,169.13,168.98,7.3996]
[1729478435663,17.75,169.11,168.99,1.48018815]
[1729478435868,2.9587,169.04,168.98,7.3996]
[1729478436068,2.9587,169.04,168.99,1.48022184]
[1729478436267,4.44,169.06,168.96,7.0702]
[1729478436468,2.9589,169.03,168.98,2.9596]
[1729478439072,2.9587,169.03,168.97,2.9597]
[1729478439368,2.9587,169.03,168.96,7.0702]
[1729478439767,2.9587,169.03,168.97,1.48029709]
[1729478439969,2.9587,169.03,168.96,7.0702]
[1729478440172,2.9587,169.03,168.97,1.48029701]
[1729478440471,2.9587,169.03,168.96,7.0702]
[1729478440872,2.9587,169.03,168.98,2.9595]
[1729478442078,4.44,169.06,168.96,2.6302]
[1729478442373,4.44,169.06,168.98,2.9596]
[1729478443473,2.9588,169.03,168.98,2.9596]
[1729478443670,4.44,169.06,168.96,2.6302]
[1729478444079,2.9592,169.01,168.96,2.6302]
[1729478444876,2.9592,169.01,168.96,5.5901]
[1729478445379,4.44,169.02,168.96,2.6302]
[1729478445567,7.3989,169.02,168.97,2.9597]
[1729478445773,4.44,169.02,168.96,2.6302]
[1729478446773,2.9592,169.01,168.96,5.5901]
[1729478447280,4.44,169.02,168.98,2.9595]
[1729478447485,4.44,169.02,168.96,2.6302]
[1729478447776,17.75,169.11,168.98,2.9596]
[1729478447777,4.44,169.04,168.98,2.9596]
[1729478447970,4.44,169.04,168.96,2.6302]
[1729478448371,7.3987,169.04,168.99,2.9594]
[1729478449178,17.75,169.15,168.96,2.6302]
[1729478449377,2.9583,169.06,169.01,2.959]
[1729478449681,4.44,169.06,169.01,2.959]
[1729478451980,7.3984,169.06,169.01,2.959]
[1729478452276,7.3984,169.06,169.01,5.99353149]
[1729478452472,7.3984,169.06,169.01,2.959]
[1729478453179,7.3984,169.06,169.01,5.86889366]
[1729478453382,2.9584,169.05,169.01,2.90989366]
[1729478453571,2.9584,169.05,169.0,2.9593]
[1729478454075,2.9584,169.05,169.01,2.95933431]
[1729478454386,7.3982,169.06,169.01,5.91843431]
[1729478454775,4.44,169.06,169.01,5.91843431]
[1729478455881,2.9584,169.05,169.01,5.91843431]
[1729478456083,2.9584,169.05,169.01,2.95933431]
[1729478456278,2.9584,169.05,169.0,2.9592]
[1729478456475,2.9584,169.05,169.01,2.97561572]
[1729478457687,4.44,169.06,169.01,2.97561572]
[1729478457883,7.3983,169.06,169.01,2.959]
[1729478458073,7.3983,169.06,169.01,5.93284086]
[1729478459085,2.9584,169.05,169.01,5.93284086]
[1729478459782,2.9586,169.04,168.99,2.9594]
[1729478461188,4.44,169.06,168.99,2.9594]
[1729478461380,2.9588,169.03,168.99,2.9594]
[1729478461983,4.44,169.06,168.96,2.6302]
[1729478462179,4.44,169.06,168.97,1.48033732]
[1729478462385,4.44,169.06,168.96,2.6302]
[1729478462980,22.19,169.06,168.92,7.3579897]
[1729478463283,22.19,169.06,168.93,1.48052774]
[1729478463577,22.19,169.06,168.94,1.48052774]
[1729478463780,22.19,169.06,168.91,4.44]
[1729478463984,2.959,169.02,168.92,4.44141115]
[1729478464182,4.44,169.01,168.92,2.9607]
[1729478464382,4.44,169.01,168.93,1.48089134]
[1729478464581,4.44,169.01,168.9,4.44]
[1729478464884,4.44,169.01,168.91,1.48089556]
[1729478465083,4.44,169.01,168.9,7.4688539]
[1729478465084,4.44,169.01,168.9,3.0288539]
[1729478465388,22.19,169.01,168.91,1.48104978]
[1729478465588,22.19,169.01,168.9,3.0288539]
[1729478466185,22.19,169.01,168.89,3.8994]
[1729478466395,22.19,169.01,168.9,2.91423901]
[1729478466584,2.9603,168.95,168.9,2.91423901]
[1729478466785,4.44,168.95,168.81,169.28653841]
[1729478467087,4.44,168.95,168.82,11.32465102]
[1729478467284,2.9607,168.92,168.86,2.9616]
[1729478467484,2.9607,168.92,168.86,5.88968304]
[1729478467787,2.9607,168.92,168.87,1.48117551]
[1729478467986,2.9607,168.92,168.88,1.48117551]
[1729478468286,4.44,168.95,168.86,2.92808304]
[1729478468596,4.44,168.95,168.87,1.48133248]
[1729478468597,22.19,168.95,168.87,1.48133248]
[1729478468791,22.19,168.95,168.83,2.9621]
[1729478468991,2.9607,168.92,168.84,1.48149768]
[1729478469192,4.44,168.91,168.85,2.93015675]
[1729478469388,4.44,168.9,168.82,3.9223]
[1729478469587,4.44,168.89,168.83,1.48158803]
[1729478469784,4.44,168.89,168.76,2.93902882]
[1729478469988,4.44,168.89,168.78,4.44]
[1729478470289,4.44,168.89,168.79,1.48171428]
[1729478470483,4.44,168.89,168.78,7.45577148]
[1729478470683,22.19,168.89,168.79,1.48188299]
[1729478470883,2.9623,168.83,168.77,6.8281]
[1729478471088,4.44,168.84,168.78,1.48197653]
[1729478471288,4.44,168.84,168.79,3.00149277]
[1729478471492,4.44,168.84,168.77,3.8649]
[1729478472092,4.44,168.84,168.77,6.85987229]
[1729478472490,2.961,168.91,168.78,2.9631]
[1729478472690,4.44,168.9,168.77,6.85987229]
[1729478473088,2.9617,168.87,168.8,2.9628]
[1729478473296,4.44,168.86,168.77,6.85987229]
[1729478473497,4.44,168.85,168.77,6.85987229]
[1729478473692,4.44,168.84,168.77,6.85987229]
[1729478474900,4.44,168.84,168.78,2.9631]
[1729478475597,4.44,168.84,168.77,6.85987229]
[1729478476896,2.9626,168.81,168.77,6.85987229]
[1729478477493,2.9626,168.81,168.77,5.59877229]
[1729478477793,2.9626,168.81,168.75,2.9636]
[1729478477987,4.44,168.8,168.76,2.99621341]
[1729478478291,4.44,168.8,168.75,2.9636]
[1729478478689,4.44,168.8,168.75,5.98204271]
[1729478482600,4.44,168.8,168.75,3.01844271]
[1729478482899,17.77,168.91,168.79,2.9629]
[1729478483104,4.44,168.9,168.79,2.9629]
[1729478483708,63.98,168.92,168.76,4.44]
[1729478483911,4.44,168.91,168.76,4.44]
[1729478484211,4.44,168.91,168.77,1.2394]
[1729478484605,2.9619,168.85,168.8,2.9627]
[1729478484902,2.9619,168.85,168.78,2.6273]
[1729478485099,2.9623,168.83,168.78,2.6273]
[1729478485304,4.44,168.87,168.78,2.6273]
[1729478485903,2.9621,168.84,168.78,2.6273]
[1729478486104,7.4021,168.84,168.78,2.6273]
[1729478486412,4.44,168.84,168.76,3.03166358]
[1729478486610,4.44,168.84,168.73,4.44]
[1729478487113,4.44,168.84,168.73,7.39257617]
[1729478487302,2.9628,168.8,168.74,2.9637]
[1729478487716,7.4028,168.8,168.74,2.9637]
[1729478488101,7.4028,168.8,168.75,2.9220425]
[1729478488510,4.44,168.8,168.7,3.9084]
[1729478488716,2.9633,168.77,168.7,3.9084]
[1729478489303,2.9637,168.75,168.7,3.9084]
[1729478490314,4.44,168.76,168.7,3.9084]
[1729478490511,7.4036,168.76,168.71,2.92913596]
[1729478491307,4.44,168.76,168.71,2.92913596]
[1729478491511,4.44,168.76,168.72,2.9641]
[1729478491810,4.44,168.76,168.64,1.48262017]
[1729478492004,2.964,168.73,168.67,2.965]
[1729478492205,4.44,168.76,168.66,2.472]
[1729478492605,2.9639,168.74,168.69,2.9647]
[1729478493908,4.44,168.75,168.66,6.912]
[1729478494118,4.44,168.75,168.66,2.472]
[1729478494715,4.44,168.75,168.68,2.9648]
[1729478495922,2.964,168.73,168.68,2.9648]
[1729478496809,4.44,168.75,168.66,2.472]
[1729478497120,4.44,168.75,168.69,2.9646]
[1729478497316,4.44,168.75,168.7,2.91558884]
[1729478497525,2.9641,168.73,168.66,5.4371]
[1729478497821,4.44,168.75,168.66,2.472]
[1729478498025,4.44,168.75,168.69,2.9646]
[1729478498210,4.44,168.76,168.7,2.96690605]
[1729478498413,17.77,168.84,168.7,2.96690605]
[1729478498619,17.77,168.82,168.7,2.96690605]
[1729478499522,2.9638,168.75,168.7,2.96690605]
[1729478499719,4.44,168.76,168.7,2.96690605]
[1729478500423,2.9643,168.72,168.66,9.8771]
[1729478500620,4.44,168.76,168.66,6.912]
[1729478500917,4.44,168.76,168.66,2.472]
[1729478501524,7.4038,168.75,168.66,2.472]
[1729478501727,4.44,168.75,168.66,2.472]
[1729478502920,2.9648,168.69,168.66,2.472]
[1729478503117,7.4048,168.69,168.66,2.472]
[1729478503426,4.44,168.69,168.63,1.258]
[1729478503824,2.965,168.68,168.63,1.258]
[1729478504023,4.44,168.69,168.63,1.258]
[1729478504222,4.44,168.69,168.61,2.97251975]
[1729478504422,2.9656,168.64,168.61,2.97251975]
[1729478504726,4.24,168.69,168.61,2.97251975]
[1729478505324,4.24,168.69,168.6,1.3231]
[1729478506021,2.9658,168.63,168.6,1.3231]
[1729478506626,4.44,168.65,168.59,3.03360428]
[1729478506827,2.9659,168.63,168.56,5.7714]
[1729478507525,2.9659,168.63,168.56,8.703805]
[1729478507722,4.44,168.65,168.56,4.263805]
[1729478508119,2.9661,168.62,168.56,4.263805]
[1729478508327,4.44,168.65,168.56,4.263805]
[1729478508830,2.9659,168.63,168.56,4.263805]
[1729478509127,4.44,168.67,168.57,4.44]
[1729478509336,4.44,168.68,168.57,4.44]
[1729478509633,4.44,168.67,168.57,4.44]
[1729478509824,4.44,168.66,168.57,4.44]
[1729478511723,2.9658,168.63,168.57,7.4067]
[1729478511925,2.9658,168.63,168.57,4.44]
[1729478512326,4.44,168.66,168.57,4.44]
[1729478512532,2.9658,168.63,168.58,2.9665]
[1729478513434,4.44,168.66,168.57,4.44]
[1729478513629,4.44,168.66,168.57,7.4068]
[1729478514027,2.9659,168.63,168.57,7.4068]
[1729478515226,2.9659,168.63,168.58,2.9666]
[1729478515533,4.44,168.66,168.57,4.44]
[1729478515725,4.44,168.66,168.56,4.263805]
[1729478515925,2.9666,168.59,168.56,4.263805]
[1729478516231,4.44,168.62,168.56,4.263805]
[1729478516530,2.9668,168.57,168.56,4.263805]
[1729478516937,4.44,168.6,168.56,4.263805]
[1729478517136,2.9667,168.58,168.44,342.0]
[1729478517335,4.44,168.6,168.5,2.5692]
[1729478518132,2.967,168.57,168.52,2.9677]
[1729478518331,2.967,168.57,168.52,5.9255072]
[1729478521134,4.44,168.6,168.42,342.0]
[1729478521329,64.08,168.66,168.43,3.72194173]
[1729478521534,4.44,168.65,168.44,1.09114173]
[1729478521737,4.44,168.64,168.44,3.00974292]
[1729478521937,4.44,168.64,168.45,1.09116083]
[1729478522138,4.44,168.64,168.46,4.44]
[1729478522341,4.44,168.64,168.47,1.0909697]
[1729478522531,2.9665,168.59,168.52,2.9676]
[1729478522736,4.44,168.62,168.53,8.2603]
[1729478522935,4.44,168.61,168.53,3.8203]
[1729478523142,2.9665,168.59,168.54,2.9673]
[1729478523332,4.44,168.64,168.53,3.8203]
[1729478523642,2.9661,168.61,168.55,2.9671]
[1729478523832,2.9661,168.61,168.56,4.44]
[1729478524438,2.9659,168.62,168.56,7.4069]
[1729478524743,2.9659,168.62,168.56,10.43469393]
[1729478526943,2.9659,168.62,168.56,7.46779393]
[1729478527147,2.9659,168.62,168.57,2.9668]
[1729478527347,4.44,168.64,168.56,7.46779393]
[1729478527639,4.44,168.64,168.56,10.43479393]
[1729478528040,2.9659,168.63,168.56,7.46779393]
[1729478528342,4.44,168.64,168.56,3.02779393]
[1729478528543,4.44,168.64,168.54,4.44]
[1729478528744,4.44,168.64,168.54,7.4072]
[1729478528934,4.44,168.64,168.54,4.44]
[1729478529340,2.9668,168.58,168.55,2.93589863]
[1729478529535,2.9668,168.58,168.53,3.8203]
[1729478529940,4.44,168.6,168.53,3.8203]
[1729478530136,2.967,168.56,168.53,3.8203]
[1729478530346,4.44,168.6,168.53,2.5707]
[1729478530645,2.9672,168.55,168.53,2.5707]
[1729478532445,2.9676,168.53,168.48,2.9683]
[1729478532745,2.9676,168.53,168.47,5.7736]
[1729478533447,2.9676,168.53,168.48,2.9682]
[1729478534241,4.44,168.55,168.47,5.7736]
[1729478534943,2.9676,168.53,168.48,2.9683]
[1729478535336,2.9676,168.53,168.47,5.7736]
[1729478535337,4.44,168.57,168.47,5.7736]
[1729478535644,2.9675,168.54,168.49,2.9681]
[1729478536142,2.9676,168.53,168.49,2.9681]
[1729478536539,2.9678,168.52,168.47,4.3022]
[1729478536740,4.44,168.57,168.47,4.3022]
[1729478537142,2.9673,168.54,168.47,4.3022]
[1729478537341,4.44,168.57,168.47,4.3022]
[1729478538252,4.44,168.57,168.47,1.3336]
[1729478539155,2.9679,168.51,168.47,1.3336]
[1729478539742,2.9682,168.5,168.46,2.93221063]
[1729478540048,4.44,168.53,168.45,5.5604554]
[1729478540252,4.44,168.53,168.45,2.5883]
[1729478540448,2.9684,168.48,168.45,2.5883]
[1729478541246,2.9685,168.48,168.45,2.5883]
[1729478541650,17.77,168.63,168.45,2.5883]
[1729478541849,2.9679,168.51,168.45,2.5883]
[1729478542050,4.44,168.52,168.45,2.5883]
[1729478542554,2.9684,168.49,168.45,2.5883]
[1729478542746,4.44,168.52,168.45,2.5883]
[1729478542951,4.44,168.52,168.46,2.9686]
[1729478543147,2.9679,168.51,168.5,0.2]
[1729478545854,7.4079,168.51,168.5,0.2]
[1729478547050,2.9679,168.51,168.5,0.2]
[1729478547363,7.4079,168.51,168.5,0.2]
[1729478549760,2.9686,168.47,168.44,3.02827863]
[1729478549951,4.44,168.51,168.38,2.5745]
[1729478550151,4.44,168.51,168.38,7.0145]
[1729478550355,2.9687,168.47,168.41,2.9696]
[1729478551357,4.44,168.51,168.41,2.9696]
[1729478551560,2.9689,168.46,168.41,2.9696]
[1729478553455,2.969,168.45,168.41,2.9696]
[1729478554560,2.969,168.45,168.4,2.9698]
[1729478555354,2.9692,168.44,168.4,2.9698]
[1729478555557,2.9692,168.44,168.35,3.00974292]
[1729478555761,4.46,168.47,168.36,2.5893]
[1729478556359,4.46,168.47,168.36,3.9453]
[1729478557863,4.46,168.47,168.38,2.9701]
[1729478558059,4.46,168.47,168.36,2.5893]
[1729478558462,22.23,168.47,168.34,2.9003186]
[1729478558659,22.23,168.47,168.31,2.5529]
[1729478559369,64.14,168.54,168.31,5.54108306]
[1729478559370,17.77,168.53,168.31,5.54108306]
[1729478559566,17.77,168.53,168.31,2.5529]
[1729478559567,0.86846654,168.52,168.31,2.5529]
[1729478559774,17.77,168.51,168.31,2.5529]
[1729478560067,0.86846654,168.5,168.31,5.57495527]
[1729478560661,0.86846654,168.5,168.33,2.9709]
[1729478561370,2.97,168.4,168.33,2.9709]
[1729478561666,4.46,168.4,168.34,2.9708]
[1729478562265,2.97,168.39,168.34,2.9708]
[1729478562773,2.97,168.39,168.33,2.971]
[1729478563670,2.9702,168.38,168.33,2.971]
[1729478564669,2.9706,168.36,168.31,8.54635527]
[1729478564877,4.46,168.41,168.31,5.57495527]
[1729478565278,2.9708,168.35,168.31,5.57495527]
[1729478565673,2.97165606,168.47,168.31,5.57495527]
[1729478565874,4.46,168.46,168.31,5.57495527]
[1729478566273,2.9695,168.42,168.35,2.9706]
[1729478566570,4.46,168.42,168.31,5.57495527]
[1729478567077,4.46,168.41,168.31,5.57495527]
[1729478567281,130.06320732,168.52,168.31,5.57495527]
[1729478567580,2.9701,168.39,168.33,2.971]
[1729478567770,4.46,168.4,168.31,5.57495527]
[1729478568471,4.46,168.4,168.12,294.90717936]
[1729478568678,4.46,168.39,168.26,3.7513]
[1729478568876,22.23,168.38,168.26,6.76693657]
[1729478569079,22.23,168.38,168.27,2.9721]
[1729478569080,2.9712,168.33,168.27,2.9721]
[1729478569471,2.9709,168.34,168.27,2.9721]
[1729478569677,4.46,168.37,168.27,2.9721]
[1729478570078,2.9713,168.32,168.26,6.76693657]
[1729478570274,4.46,168.33,168.26,6.76693657]
[1729478570876,64.16,168.42,168.26,6.76693657]
[1729478571091,4.46,168.41,168.26,6.76693657]
[1729478571385,2.9704,168.37,168.26,9.73913657]
[1729478571583,4.76,168.36,168.26,9.73913657]
[1729478571889,4.76,168.36,168.26,6.76693657]
[1729478572588,2.9713,168.32,168.26,6.76693657]
[1729478573083,4.76,168.36,168.26,5.48493657]
[1729478573384,2.9714,168.31,168.26,5.48493657]
[1729478573783,4.76,168.31,168.25,2.94702579]
[1729478573986,4.76,168.31,168.21,2.5172]
[1729478574185,4.76,168.31,168.22,4.76]
[1729478575590,4.76,168.31,168.21,2.5172]
[1729478576185,2.9716,168.3,168.25,2.9724]
[1729478576490,2.9716,168.3,168.25,5.89653223]
[1729478576684,4.76,168.31,168.25,2.92413223]
[1729478576890,4.76,168.31,168.21,2.5172]
[1729478578100,2.9716,168.3,168.24,2.9726]
[1729478578489,2.9716,168.3,168.21,2.5172]
[1729478579903,2.9716,168.3,168.25,2.9723]
[1729478580100,4.76,168.32,168.25,3.0042866]
[1729478580299,4.76,168.33,168.22,1.2536]
[1729478580599,4.76,168.33,168.23,2.5866]
[1729478581392,2.9718,168.29,168.24,2.9726]
[1729478581591,17.77,168.41,168.23,7.3466]
[1729478581801,17.77,168.39,168.23,7.3466]
[1729478581995,2.9708,168.35,168.27,2.9719]
[1729478582295,4.76,168.36,168.27,2.97574514]
[1729478582496,2.9705,168.37,168.31,2.9712]
[1729478582809,64.16,168.42,168.29,2.588]
[1729478583004,4.76,168.4,168.29,2.588]
[1729478583193,4.76,168.4,168.34,2.9708]
[1729478583594,4.76,168.4,168.29,2.588]
[1729478584798,2.9705,168.37,168.31,2.9714]
[1729478584998,81.93,168.42,168.29,2.588]
[1729478585199,22.53,168.41,168.29,1.297]
[1729478585800,22.53,168.41,168.28,1.2536]
[1729478586499,2.9712,168.33,168.28,1.2536]